[Event "Titled Tuesday Blitz January 31 Late 2023"]
[White "Ortega Amarelle, Mariano"]
[Black "Lucassen, Mickey"]
[WhiteFideId "3504301"]
[BlackFideId "12919110"]
[WhiteElo "2472"]
[BlackElo "2023"]
[Result "1-0"]
[Round "10"]
[TimeControl "180+2"]
[Date "2023.01.31"]
[WhiteClock "0:01:42"]
[BlackClock "0:01:16"]

1. e4 {[%clk 0:02:57]}  c5 {[%clk 0:02:55]} 2. Nf3 {[%clk 0:02:56]}  d6 {[%clk 0:02:55]} 3. d4 {[%clk 0:02:53]}  cxd4 {[%clk 0:02:56]} 4. Nxd4 {[%clk 0:02:53]}  Nf6 {[%clk 0:02:56]} 5. Nc3 {[%clk 0:02:54]}  g6 {[%clk 0:02:57]} 6. f4 {[%clk 0:02:53]}  Nc6 {[%clk 0:02:56]} 7. Nf3 {[%clk 0:02:52]}  Bg7 {[%clk 0:02:53]} 8. Bd3 {[%clk 0:02:53]}  O-O {[%clk 0:02:53]} 9. O-O {[%clk 0:02:53]}  a6 {[%clk 0:02:50]} 10. Qe1 {[%clk 0:02:50]}  b5 {[%clk 0:02:49]} 11. Kh1 {[%clk 0:02:49]}  e6 {[%clk 0:02:42]} 12. f5 {[%clk 0:02:45]}  d5 {[%clk 0:02:28]} 13. e5 {[%clk 0:02:35]}  Nd7 {[%clk 0:01:52]} 14. f6 {[%clk 0:02:34]}  Nxf6 {[%clk 0:01:51]} 15. exf6 {[%clk 0:02:33]}  Bxf6 {[%clk 0:01:52]} 16. Bh6 {[%clk 0:02:30]}  Re8 {[%clk 0:01:49]} 17. Rd1 {[%clk 0:02:28]}  b4 {[%clk 0:01:45]} 18. Ne4 {[%clk 0:01:52]}  dxe4 {[%clk 0:01:36]} 19. Bxe4 {[%clk 0:01:53]}  Qc7 {[%clk 0:01:34]} 20. Bxc6 {[%clk 0:01:43]}  Qxc6 {[%clk 0:01:33]} 21. Ne5 {[%clk 0:01:44]}  Bxe5 {[%clk 0:01:16]} 22. Qxe5 {[%clk 0:01:42]} 1-0


[Site "https://www.chess.com"]

[Event "Titled Tuesday Blitz January 31 Late 2023"]
[White "Blomqvist, Erik"]
[Black "O`Gorman, Tom"]
[WhiteFideId "1709437"]
[BlackFideId "2508249"]
[WhiteElo "2523"]
[BlackElo "2355"]
[Result "1-0"]
[Round "10"]
[TimeControl "180+2"]
[Date "2023.01.31"]
[WhiteClock "0:00:49"]
[BlackClock "0:00:16"]

1. e4 {[%clk 0:03:00]}  e5 {[%clk 0:02:59]} 2. Nf3 {[%clk 0:02:59]}  Nc6 {[%clk 0:02:59]} 3. Bb5 {[%clk 0:03:00]}  a6 {[%clk 0:02:59]} 4. Ba4 {[%clk 0:03:00]}  Nf6 {[%clk 0:02:58]} 5. O-O {[%clk 0:03:01]}  Be7 {[%clk 0:02:58]} 6. d3 {[%clk 0:02:59]}  b5 {[%clk 0:02:55]} 7. Bb3 {[%clk 0:02:59]}  d6 {[%clk 0:02:55]} 8. a3 {[%clk 0:02:58]}  O-O {[%clk 0:02:53]} 9. Nc3 {[%clk 0:02:58]}  Bg4 {[%clk 0:02:49]} 10. Be3 {[%clk 0:02:58]}  Nd4 {[%clk 0:02:49]} 11. Bxd4 {[%clk 0:02:58]}  exd4 {[%clk 0:02:50]} 12. Nd5 {[%clk 0:02:58]}  Nd7 {[%clk 0:02:44]} 13. h3 {[%clk 0:02:53]}  Bxf3 {[%clk 0:02:41]} 14. Qxf3 {[%clk 0:02:54]}  c6 {[%clk 0:02:36]} 15. Nxe7+ {[%clk 0:02:53]}  Qxe7 {[%clk 0:02:37]} 16. Qg4 {[%clk 0:02:47]}  c5 {[%clk 0:02:29]} 17. f4 {[%clk 0:02:32]}  Rac8 {[%clk 0:02:24]} 18. Rf2 {[%clk 0:02:23]}  c4 {[%clk 0:02:23]} 19. Ba2 {[%clk 0:02:23]}  Nc5 {[%clk 0:02:17]} 20. Rd1 {[%clk 0:02:21]}  Na4 {[%clk 0:02:06]} 21. dxc4 {[%clk 0:02:13]}  Nxb2 {[%clk 0:02:06]} 22. Rxd4 {[%clk 0:02:11]}  Nxc4 {[%clk 0:02:06]} 23. a4 {[%clk 0:02:00]}  Rfe8 {[%clk 0:02:04]} 24. axb5 {[%clk 0:01:54]}  axb5 {[%clk 0:02:05]} 25. Kh2 {[%clk 0:01:45]}  Ne3 {[%clk 0:01:52]} 26. Qh5 {[%clk 0:01:31]}  Nxc2 {[%clk 0:01:49]} 27. Rdd2 {[%clk 0:01:10]}  Rc5 {[%clk 0:01:36]} 28. e5 {[%clk 0:00:59]}  Nb4 {[%clk 0:00:19]} 29. exd6 {[%clk 0:00:58]}  Qa7 {[%clk 0:00:19]} 30. d7 {[%clk 0:00:52]}  Rf8 {[%clk 0:00:16]} 31. Qxf7+ {[%clk 0:00:49]} 1-0


[Site "https://www.chess.com"]

[Event "Titled Tuesday Blitz January 31 Late 2023"]
[White "Tinmaz, Kerem"]
[Black "Hirneise, Jens"]
[WhiteFideId "44559151"]
[BlackFideId "24614734"]
[WhiteElo "2177"]
[BlackElo "2277"]
[Result "0-1"]
[Round "10"]
[TimeControl "180+2"]
[Date "2023.01.31"]
[WhiteClock "0:00:01"]
[BlackClock "0:01:43"]

1. e4 {[%clk 0:03:00]}  d6 {[%clk 0:02:54]} 2. d4 {[%clk 0:03:00]}  Nf6 {[%clk 0:02:47]} 3. Nc3 {[%clk 0:03:00]}  Nc6 {[%clk 0:02:45]} 4. d5 {[%clk 0:02:40]}  Nb8 {[%clk 0:02:45]} 5. Nf3 {[%clk 0:02:34]}  e5 {[%clk 0:02:42]} 6. Bd3 {[%clk 0:02:29]}  Be7 {[%clk 0:02:41]} 7. O-O {[%clk 0:02:29]}  c5 {[%clk 0:02:37]} 8. h3 {[%clk 0:02:28]}  h6 {[%clk 0:02:35]} 9. a4 {[%clk 0:02:26]}  g5 {[%clk 0:02:35]} 10. Nh2 {[%clk 0:02:20]}  Rg8 {[%clk 0:02:27]} 11. f3 {[%clk 0:02:17]}  Nh5 {[%clk 0:02:18]} 12. Ng4 {[%clk 0:01:38]}  Rh8 {[%clk 0:02:18]} 13. Kh2 {[%clk 0:01:18]}  Nf4 {[%clk 0:02:15]} 14. Bxf4 {[%clk 0:01:16]}  gxf4 {[%clk 0:02:11]} 15. Ne2 {[%clk 0:00:53]}  Bh4 {[%clk 0:02:07]} 16. c3 {[%clk 0:00:46]}  Qg5 {[%clk 0:02:06]} 17. b4 {[%clk 0:00:38]}  Rg8 {[%clk 0:02:00]} 18. g3 {[%clk 0:00:10]}  Bxg3+ {[%clk 0:01:51]} 19. Nxg3 {[%clk 0:00:09]}  fxg3+ {[%clk 0:01:50]} 20. Kxg3 {[%clk 0:00:04]}  h5 {[%clk 0:01:51]} 21. h4 {[%clk 0:00:02]}  Qf4+ {[%clk 0:01:48]} 22. Kf2 {[%clk 0:00:01]}  hxg4 {[%clk 0:01:48]} 23. Ke1 {[%clk 0:00:01]}  gxf3 {[%clk 0:01:43]} 24. Rxf3 {[%clk 0:00:01]}  Rg1+ {[%clk 0:01:43]} 0-1


[Site "https://www.chess.com"]

[Event "Titled Tuesday Blitz January 31 Late 2023"]
[White "Ansh M Shah"]
[Black "Tanenbaum, Zachary"]
[WhiteFideId "25033379"]
[BlackFideId "2060850"]
[WhiteElo "2171"]
[BlackElo "2261"]
[Result "0-1"]
[Round "10"]
[TimeControl "180+2"]
[Date "2023.01.31"]
[WhiteClock "0:00:47"]
[BlackClock "0:00:09"]

1. d4 {[%clk 0:03:00]}  d5 {[%clk 0:03:00]} 2. c4 {[%clk 0:03:01]}  dxc4 {[%clk 0:03:00]} 3. e3 {[%clk 0:03:01]}  e5 {[%clk 0:03:00]} 4. Bxc4 {[%clk 0:03:02]}  Nc6 {[%clk 0:03:01]} 5. Nf3 {[%clk 0:03:02]}  e4 {[%clk 0:02:58]} 6. Nfd2 {[%clk 0:02:53]}  Qg5 {[%clk 0:02:58]} 7. Nxe4 {[%clk 0:02:21]}  Qxg2 {[%clk 0:02:57]} 8. Ng3 {[%clk 0:02:22]}  Qh3 {[%clk 0:02:55]} 9. Qf3 {[%clk 0:02:19]}  Nf6 {[%clk 0:02:43]} 10. Nc3 {[%clk 0:02:18]}  Bg4 {[%clk 0:02:08]} 11. Qf4 {[%clk 0:02:05]}  Bd6 {[%clk 0:02:06]} 12. Qg5 {[%clk 0:02:04]}  Bxg3 {[%clk 0:02:03]} 13. fxg3 {[%clk 0:02:02]}  Qg2 {[%clk 0:02:03]} 14. Rf1 {[%clk 0:01:56]}  O-O-O {[%clk 0:01:14]} 15. Qxg7 {[%clk 0:01:30]}  Nxd4 {[%clk 0:01:06]} 16. Rf2 {[%clk 0:01:04]}  Qg1+ {[%clk 0:00:19]} 17. Bf1 {[%clk 0:01:03]}  Nf3+ {[%clk 0:00:07]} 18. Rxf3 {[%clk 0:00:54]}  Bxf3 {[%clk 0:00:08]} 19. Qxf6 {[%clk 0:00:53]}  Bc6 {[%clk 0:00:06]} 20. Bd2 {[%clk 0:00:42]}  Qxh2 {[%clk 0:00:05]} 21. Qf2 {[%clk 0:00:40]}  Qxf2+ {[%clk 0:00:04]} 22. Kxf2 {[%clk 0:00:41]}  Rxd2+ {[%clk 0:00:05]} 23. Ke1 {[%clk 0:00:41]}  Rxb2 {[%clk 0:00:04]} 24. Bh3+ {[%clk 0:00:40]}  Kb8 {[%clk 0:00:03]} 25. Rd1 {[%clk 0:00:40]}  a6 {[%clk 0:00:03]} 26. Ne2 {[%clk 0:00:40]}  Bf3 {[%clk 0:00:02]} 27. Bf1 {[%clk 0:00:40]}  Bxe2 {[%clk 0:00:02]} 28. Bxe2 {[%clk 0:00:40]}  Re8 {[%clk 0:00:01]} 29. Kf2 {[%clk 0:00:40]}  Rxa2 {[%clk 0:00:02]} 30. Kf3 {[%clk 0:00:40]}  Ra3 {[%clk 0:00:02]} 31. Bc4 {[%clk 0:00:40]}  Raxe3+ {[%clk 0:00:03]} 32. Kf4 {[%clk 0:00:40]}  R3e7 {[%clk 0:00:04]} 33. Rd4 {[%clk 0:00:40]}  c5 {[%clk 0:00:03]} 34. Rd5 {[%clk 0:00:40]}  Re4+ {[%clk 0:00:04]} 35. Kf5 {[%clk 0:00:41]}  Rxc4 {[%clk 0:00:05]} 36. Rd7 {[%clk 0:00:41]}  Rd4 {[%clk 0:00:05]} 37. Rxf7 {[%clk 0:00:41]}  c4 {[%clk 0:00:06]} 38. Rxh7 {[%clk 0:00:42]}  c3 {[%clk 0:00:06]} 39. Rh2 {[%clk 0:00:43]}  Rc4 {[%clk 0:00:07]} 40. Rc2 {[%clk 0:00:43]}  b5 {[%clk 0:00:07]} 41. Kf6 {[%clk 0:00:43]}  b4 {[%clk 0:00:07]} 42. Kf7 {[%clk 0:00:44]}  Rec8 {[%clk 0:00:08]} 43. Ke6 {[%clk 0:00:44]}  b3 {[%clk 0:00:09]} 44. Rc1 {[%clk 0:00:44]}  c2 {[%clk 0:00:09]} 45. Kd6 {[%clk 0:00:44]}  b2 {[%clk 0:00:10]} 46. Rxc2 {[%clk 0:00:44]}  Rxc2 {[%clk 0:00:10]} 47. Kd5 {[%clk 0:00:45]}  b1=Q {[%clk 0:00:10]} 48. Kd4 {[%clk 0:00:46]}  Qd1+ {[%clk 0:00:10]} 49. Ke3 {[%clk 0:00:45]}  Qd2+ {[%clk 0:00:10]} 50. Kf3 {[%clk 0:00:46]}  R2c3+ {[%clk 0:00:10]} 51. Kg4 {[%clk 0:00:46]}  Rg8+ {[%clk 0:00:11]} 52. Kh3 {[%clk 0:00:47]}  Rcxg3+ {[%clk 0:00:09]} 0-1


[Site "https://www.chess.com"]

[Event "Titled Tuesday Blitz January 31 Late 2023"]
[White "Kim, Sergey"]
[Black "Kaplan, Avi Harrison"]
[WhiteFideId "13700570"]
[BlackFideId "30934559"]
[WhiteElo "2295"]
[BlackElo "2146"]
[Result "0-1"]
[Round "10"]
[TimeControl "180+2"]
[Date "2023.01.31"]
[WhiteClock "0:00:47"]
[BlackClock "0:01:26"]

1. d4 {[%clk 0:02:56]}  Nf6 {[%clk 0:02:55]} 2. c4 {[%clk 0:02:56]}  c5 {[%clk 0:02:56]} 3. d5 {[%clk 0:02:56]}  b5 {[%clk 0:02:57]} 4. cxb5 {[%clk 0:02:56]}  a6 {[%clk 0:02:57]} 5. b6 {[%clk 0:02:57]}  d6 {[%clk 0:02:57]} 6. Nc3 {[%clk 0:02:57]}  Nbd7 {[%clk 0:02:57]} 7. e4 {[%clk 0:02:57]}  Qxb6 {[%clk 0:02:57]} 8. Nf3 {[%clk 0:02:57]}  g6 {[%clk 0:02:57]} 9. Be2 {[%clk 0:02:57]}  Bg7 {[%clk 0:02:58]} 10. O-O {[%clk 0:02:57]}  O-O {[%clk 0:02:58]} 11. a4 {[%clk 0:02:56]}  Ne8 {[%clk 0:02:52]} 12. Ra3 {[%clk 0:02:54]}  Nc7 {[%clk 0:02:50]} 13. Nd2 {[%clk 0:02:54]}  a5 {[%clk 0:02:39]} 14. Nc4 {[%clk 0:02:51]}  Qa7 {[%clk 0:02:32]} 15. Bg5 {[%clk 0:02:49]}  f6 {[%clk 0:02:29]} 16. Be3 {[%clk 0:02:39]}  Nb6 {[%clk 0:02:29]} 17. Nd2 {[%clk 0:02:31]}  Na6 {[%clk 0:02:26]} 18. Bg4 {[%clk 0:02:12]}  Nb4 {[%clk 0:02:20]} 19. Nb5 {[%clk 0:02:04]}  Qb7 {[%clk 0:02:15]} 20. Bxc8 {[%clk 0:02:02]}  Raxc8 {[%clk 0:02:16]} 21. b3 {[%clk 0:02:00]}  f5 {[%clk 0:02:12]} 22. exf5 {[%clk 0:01:57]}  Rxf5 {[%clk 0:02:13]} 23. Nc4 {[%clk 0:01:56]}  Rxd5 {[%clk 0:01:58]} 24. Qg4 {[%clk 0:01:51]}  Nxc4 {[%clk 0:01:45]} 25. bxc4 {[%clk 0:01:44]}  Rf5 {[%clk 0:01:41]} 26. Rd1 {[%clk 0:01:34]}  Rcf8 {[%clk 0:01:28]} 27. Nc3 {[%clk 0:00:52]}  Nc2 {[%clk 0:01:26]} 28. Ra2 {[%clk 0:00:48]}  Nxe3 {[%clk 0:01:26]} 29. fxe3 {[%clk 0:00:47]}  Bxc3 {[%clk 0:01:26]} 0-1


[Site "https://www.chess.com"]

[Event "Titled Tuesday Blitz January 31 Late 2023"]
[White "Omelja, Artem"]
[Black "QuiesPrecatio"]
[WhiteFideId "14119846"]
[WhiteElo "2446"]
[BlackElo "2426"]
[Result "1-0"]
[Round "10"]
[TimeControl "180+2"]
[Date "2023.01.31"]
[WhiteClock "0:00:29"]
[BlackClock "0:00:19"]

1. e4 {[%clk 0:03:00]}  c6 {[%clk 0:02:57]} 2. Ne2 {[%clk 0:02:56]}  d5 {[%clk 0:02:58]} 3. e5 {[%clk 0:02:55]}  c5 {[%clk 0:02:55]} 4. d4 {[%clk 0:02:55]}  Nc6 {[%clk 0:02:56]} 5. dxc5 {[%clk 0:02:56]}  e6 {[%clk 0:02:50]} 6. Nd4 {[%clk 0:02:54]}  Bxc5 {[%clk 0:02:50]} 7. Nxc6 {[%clk 0:02:54]}  bxc6 {[%clk 0:02:50]} 8. Bd3 {[%clk 0:02:53]}  Ne7 {[%clk 0:02:49]} 9. O-O {[%clk 0:02:51]}  Ng6 {[%clk 0:02:49]} 10. Qe2 {[%clk 0:02:49]}  Bb6 {[%clk 0:02:32]} 11. Nd2 {[%clk 0:02:42]}  c5 {[%clk 0:02:28]} 12. c3 {[%clk 0:02:41]}  O-O {[%clk 0:02:18]} 13. Nf3 {[%clk 0:02:41]}  f6 {[%clk 0:02:13]} 14. exf6 {[%clk 0:02:32]}  gxf6 {[%clk 0:02:12]} 15. Bh6 {[%clk 0:02:31]}  Re8 {[%clk 0:02:04]} 16. Nh4 {[%clk 0:02:29]}  f5 {[%clk 0:01:49]} 17. Nxg6 {[%clk 0:02:20]}  hxg6 {[%clk 0:01:50]} 18. Bb5 {[%clk 0:02:08]}  Bd7 {[%clk 0:01:29]} 19. Qe5 {[%clk 0:02:06]}  Qe7 {[%clk 0:01:30]} 20. Bg5 {[%clk 0:02:05]}  Qf7 {[%clk 0:01:27]} 21. Bxd7 {[%clk 0:02:00]}  Qxd7 {[%clk 0:01:28]} 22. Bf4 {[%clk 0:02:00]}  Qg7 {[%clk 0:01:24]} 23. Rad1 {[%clk 0:01:57]}  Qxe5 {[%clk 0:01:18]} 24. Bxe5 {[%clk 0:01:58]}  Rac8 {[%clk 0:01:16]} 25. c4 {[%clk 0:01:57]}  d4 {[%clk 0:01:14]} 26. b3 {[%clk 0:01:57]}  Kf7 {[%clk 0:01:14]} 27. Rfe1 {[%clk 0:01:57]}  g5 {[%clk 0:01:13]} 28. g3 {[%clk 0:01:54]}  g4 {[%clk 0:01:13]} 29. f4 {[%clk 0:01:54]}  gxf3 {[%clk 0:01:13]} 30. Kf2 {[%clk 0:01:54]}  Bc7 {[%clk 0:01:13]} 31. Kxf3 {[%clk 0:01:53]}  Bxe5 {[%clk 0:01:01]} 32. Rxe5 {[%clk 0:01:54]}  Kf6 {[%clk 0:01:02]} 33. Rde1 {[%clk 0:01:53]}  Re7 {[%clk 0:01:00]} 34. h3 {[%clk 0:01:46]}  a5 {[%clk 0:00:58]} 35. g4 {[%clk 0:01:45]}  fxg4+ {[%clk 0:00:53]} 36. hxg4 {[%clk 0:01:46]}  Rh8 {[%clk 0:00:50]} 37. g5+ {[%clk 0:01:41]}  Kf7 {[%clk 0:00:50]} 38. Rxc5 {[%clk 0:01:41]}  Rh3+ {[%clk 0:00:48]} 39. Kg4 {[%clk 0:01:27]}  Rh2 {[%clk 0:00:43]} 40. Rf1+ {[%clk 0:01:20]}  Kg7 {[%clk 0:00:44]} 41. Rxa5 {[%clk 0:00:54]}  e5 {[%clk 0:00:43]} 42. Kg3 {[%clk 0:00:43]}  Rc2 {[%clk 0:00:37]} 43. Rd5 {[%clk 0:00:42]}  Rxa2 {[%clk 0:00:34]} 44. Re1 {[%clk 0:00:41]}  Rb2 {[%clk 0:00:32]} 45. Rexe5 {[%clk 0:00:37]}  Rxb3+ {[%clk 0:00:31]} 46. Kg4 {[%clk 0:00:37]}  Rxe5 {[%clk 0:00:30]} 47. Rxe5 {[%clk 0:00:38]}  Rc3 {[%clk 0:00:30]} 48. Rc5 {[%clk 0:00:34]}  d3 {[%clk 0:00:29]} 49. Kf3 {[%clk 0:00:33]}  d2+ {[%clk 0:00:22]} 50. Ke2 {[%clk 0:00:32]}  Rd3 {[%clk 0:00:23]} 51. Kd1 {[%clk 0:00:31]}  Kg6 {[%clk 0:00:23]} 52. Re5 {[%clk 0:00:31]}  Rg3 {[%clk 0:00:14]} 53. Kxd2 {[%clk 0:00:30]}  Rxg5 {[%clk 0:00:14]} 54. Rxg5+ {[%clk 0:00:29]}  Kxg5 {[%clk 0:00:15]} 55. Kd3 {[%clk 0:00:29]}  Kf5 {[%clk 0:00:15]} 56. Kd4 {[%clk 0:00:30]}  Ke6 {[%clk 0:00:15]} 57. Kc5 {[%clk 0:00:30]}  Kd7 {[%clk 0:00:16]} 58. Kb6 {[%clk 0:00:31]}  Kc8 {[%clk 0:00:17]} 59. c5 {[%clk 0:00:28]}  Kb8 {[%clk 0:00:17]} 60. c6 {[%clk 0:00:28]}  Kc8 {[%clk 0:00:18]} 61. c7 {[%clk 0:00:28]}  Kd7 {[%clk 0:00:19]} 62. Kb7 {[%clk 0:00:29]} 1-0


[Site "https://www.chess.com"]

[Event "Titled Tuesday Blitz January 31 Late 2023"]
[White "Ibadov, Dashgyn"]
[Black "Melikhov, Evgeny V."]
[WhiteFideId "24107514"]
[BlackFideId "4122046"]
[WhiteElo "2391"]
[BlackElo "2269"]
[Result "1-0"]
[Round "10"]
[TimeControl "180+2"]
[Date "2023.01.31"]
[WhiteClock "0:01:21"]
[BlackClock "0:00:18"]

1. d4 {[%clk 0:03:00]}  Nf6 {[%clk 0:02:58]} 2. c4 {[%clk 0:02:59]}  e6 {[%clk 0:02:59]} 3. Nf3 {[%clk 0:02:58]}  d5 {[%clk 0:02:59]} 4. Nc3 {[%clk 0:02:58]}  Bb4 {[%clk 0:02:58]} 5. e3 {[%clk 0:02:56]}  O-O {[%clk 0:02:57]} 6. cxd5 {[%clk 0:02:55]}  exd5 {[%clk 0:02:53]} 7. Bd3 {[%clk 0:02:52]}  c5 {[%clk 0:02:52]} 8. O-O {[%clk 0:02:51]}  c4 {[%clk 0:02:49]} 9. Bc2 {[%clk 0:02:50]}  Bg4 {[%clk 0:02:26]} 10. h3 {[%clk 0:02:50]}  Bh5 {[%clk 0:02:26]} 11. g4 {[%clk 0:02:45]}  Bg6 {[%clk 0:02:26]} 12. Ne5 {[%clk 0:02:46]}  Bxc2 {[%clk 0:02:21]} 13. Qxc2 {[%clk 0:02:46]}  a6 {[%clk 0:01:59]} 14. Ne2 {[%clk 0:02:14]}  Re8 {[%clk 0:01:40]} 15. Ng3 {[%clk 0:02:01]}  Nbd7 {[%clk 0:01:36]} 16. f4 {[%clk 0:02:00]}  Qc7 {[%clk 0:01:18]} 17. Bd2 {[%clk 0:01:55]}  Bd6 {[%clk 0:01:14]} 18. g5 {[%clk 0:01:49]}  Ne4 {[%clk 0:01:13]} 19. Nxe4 {[%clk 0:01:49]}  dxe4 {[%clk 0:01:13]} 20. Qxe4 {[%clk 0:01:46]}  b5 {[%clk 0:01:05]} 21. a3 {[%clk 0:01:34]}  Bxe5 {[%clk 0:00:55]} 22. fxe5 {[%clk 0:01:33]}  f6 {[%clk 0:00:44]} 23. gxf6 {[%clk 0:01:31]}  Nxf6 {[%clk 0:00:42]} 24. Qf3 {[%clk 0:01:23]}  Nd7 {[%clk 0:00:35]} 25. Bb4 {[%clk 0:01:22]}  Qc6 {[%clk 0:00:18]} 26. Qxc6 {[%clk 0:01:21]} 1-0


[Site "https://www.chess.com"]

[Event "Titled Tuesday Blitz January 31 Late 2023"]
[White "OKEKE, Isaac Chukwudalu"]
[Black "Ronka, Erik"]
[WhiteFideId "8508526"]
[BlackFideId "505080"]
[WhiteElo "2155"]
[BlackElo "2276"]
[Result "0-1"]
[Round "10"]
[TimeControl "180+2"]
[Date "2023.01.31"]
[WhiteClock "0:00:03"]
[BlackClock "0:00:12"]

1. e4 {[%clk 0:02:59]}  c5 {[%clk 0:02:59]} 2. Nf3 {[%clk 0:02:59]}  b6 {[%clk 0:02:59]} 3. d4 {[%clk 0:02:59]}  cxd4 {[%clk 0:03:00]} 4. Nxd4 {[%clk 0:02:59]}  Bb7 {[%clk 0:03:00]} 5. Nc3 {[%clk 0:02:59]}  a6 {[%clk 0:03:01]} 6. Bc4 {[%clk 0:02:57]}  e6 {[%clk 0:03:00]} 7. a3 {[%clk 0:02:53]}  Nf6 {[%clk 0:02:58]} 8. Qe2 {[%clk 0:02:52]}  Qc7 {[%clk 0:02:58]} 9. O-O {[%clk 0:02:42]}  d6 {[%clk 0:02:52]} 10. Bf4 {[%clk 0:02:21]}  Nbd7 {[%clk 0:02:35]} 11. Bxe6 {[%clk 0:02:17]}  fxe6 {[%clk 0:02:32]} 12. Nxe6 {[%clk 0:02:18]}  Qc8 {[%clk 0:02:32]} 13. Nd5 {[%clk 0:02:15]}  Kf7 {[%clk 0:02:22]} 14. Ndc7 {[%clk 0:01:23]}  Ra7 {[%clk 0:02:12]} 15. Qc4 {[%clk 0:01:14]}  d5 {[%clk 0:02:08]} 16. exd5 {[%clk 0:01:10]}  Bxd5 {[%clk 0:02:08]} 17. Ng5+ {[%clk 0:01:05]}  Kg8 {[%clk 0:02:01]} 18. Qc3 {[%clk 0:00:45]}  h6 {[%clk 0:01:48]} 19. Nf3 {[%clk 0:00:23]}  Bxf3 {[%clk 0:01:45]} 20. gxf3 {[%clk 0:00:24]}  Nc5 {[%clk 0:01:38]} 21. b4 {[%clk 0:00:19]}  Rxc7 {[%clk 0:01:24]} 22. Bxc7 {[%clk 0:00:16]}  Qxc7 {[%clk 0:01:24]} 23. bxc5 {[%clk 0:00:16]}  Bxc5 {[%clk 0:01:25]} 24. Qc4+ {[%clk 0:00:15]}  Kh7 {[%clk 0:01:24]} 25. Qd3+ {[%clk 0:00:15]}  g6 {[%clk 0:01:12]} 26. Rfe1 {[%clk 0:00:14]}  Rd8 {[%clk 0:01:09]} 27. Qb3 {[%clk 0:00:09]}  Kg7 {[%clk 0:01:06]} 28. Rad1 {[%clk 0:00:08]}  Rxd1 {[%clk 0:01:02]} 29. Rxd1 {[%clk 0:00:09]}  Qf4 {[%clk 0:00:56]} 30. a4 {[%clk 0:00:05]}  a5 {[%clk 0:00:55]} 31. Qb5 {[%clk 0:00:04]}  Qxf3 {[%clk 0:00:50]} 32. Rd2 {[%clk 0:00:04]}  h5 {[%clk 0:00:42]} 33. Qe2 {[%clk 0:00:02]}  Qf5 {[%clk 0:00:27]} 34. Rd3 {[%clk 0:00:02]}  Ng4 {[%clk 0:00:24]} 35. Rf3 {[%clk 0:00:02]}  Qd5 {[%clk 0:00:22]} 36. h3 {[%clk 0:00:02]}  Nf6 {[%clk 0:00:20]} 37. Rd3 {[%clk 0:00:02]}  Qg5+ {[%clk 0:00:20]} 38. Kf1 {[%clk 0:00:02]}  Kh6 {[%clk 0:00:17]} 39. Qf3 {[%clk 0:00:02]}  Qf5 {[%clk 0:00:16]} 40. Kg2 {[%clk 0:00:02]}  Qxf3+ {[%clk 0:00:16]} 41. Rxf3 {[%clk 0:00:03]}  Nd5 {[%clk 0:00:16]} 42. Rf7 {[%clk 0:00:03]}  Nc3 {[%clk 0:00:15]} 43. f4 {[%clk 0:00:02]}  Nxa4 {[%clk 0:00:15]} 44. Rf6 {[%clk 0:00:03]}  Kg7 {[%clk 0:00:14]} 45. Rc6 {[%clk 0:00:03]}  Nc3 {[%clk 0:00:14]} 46. Kf3 {[%clk 0:00:03]}  a4 {[%clk 0:00:14]} 47. Rc7+ {[%clk 0:00:04]}  Kh6 {[%clk 0:00:14]} 48. Ra7 {[%clk 0:00:05]}  a3 {[%clk 0:00:14]} 49. Ra8 {[%clk 0:00:04]}  a2 {[%clk 0:00:13]} 50. f5 {[%clk 0:00:01]}  gxf5 {[%clk 0:00:13]} 51. Kf4 {[%clk 0:00:02]}  b5 {[%clk 0:00:13]} 52. Kxf5 {[%clk 0:00:03]}  Na4 {[%clk 0:00:13]} 53. Kf6 {[%clk 0:00:03]}  a1=Q+ {[%clk 0:00:12]} 0-1


[Site "https://www.chess.com"]

[Event "Titled Tuesday Blitz January 31 Late 2023"]
[White "Kujawski, Adam"]
[Black "Marczuk, Dominik"]
[WhiteFideId "1100920"]
[BlackFideId "1111264"]
[WhiteElo "2173"]
[BlackElo "2253"]
[Result "1-0"]
[Round "10"]
[TimeControl "180+2"]
[Date "2023.01.31"]
[WhiteClock "0:00:08"]
[BlackClock "0:00:02"]

1. e4 {[%clk 0:03:00]}  c5 {[%clk 0:02:44]} 2. Nf3 {[%clk 0:03:00]}  Nc6 {[%clk 0:02:43]} 3. Nc3 {[%clk 0:03:00]}  g6 {[%clk 0:02:43]} 4. Bb5 {[%clk 0:02:59]}  Bg7 {[%clk 0:02:43]} 5. O-O {[%clk 0:02:59]}  e5 {[%clk 0:02:43]} 6. Bxc6 {[%clk 0:02:54]}  dxc6 {[%clk 0:02:44]} 7. a4 {[%clk 0:02:40]}  Qc7 {[%clk 0:02:39]} 8. d3 {[%clk 0:02:39]}  Nf6 {[%clk 0:02:38]} 9. Nd2 {[%clk 0:02:37]}  O-O {[%clk 0:02:38]} 10. Nc4 {[%clk 0:02:36]}  Nd7 {[%clk 0:02:33]} 11. a5 {[%clk 0:02:33]}  Re8 {[%clk 0:02:33]} 12. f4 {[%clk 0:02:27]}  Rb8 {[%clk 0:02:18]} 13. Qf3 {[%clk 0:02:24]}  b5 {[%clk 0:02:14]} 14. axb6 {[%clk 0:02:18]}  axb6 {[%clk 0:02:15]} 15. f5 {[%clk 0:02:13]}  Rf8 {[%clk 0:01:31]} 16. Qh3 {[%clk 0:01:59]}  b5 {[%clk 0:01:25]} 17. Ne3 {[%clk 0:01:54]}  c4 {[%clk 0:01:00]} 18. dxc4 {[%clk 0:01:33]}  b4 {[%clk 0:01:00]} 19. Ncd5 {[%clk 0:01:22]}  cxd5 {[%clk 0:00:58]} 20. Nxd5 {[%clk 0:01:22]}  Qd6 {[%clk 0:00:54]} 21. Be3 {[%clk 0:01:03]}  Nf6 {[%clk 0:00:46]} 22. c5 {[%clk 0:01:00]}  Qd8 {[%clk 0:00:45]} 23. Bg5 {[%clk 0:00:41]}  h6 {[%clk 0:00:19]} 24. Bxh6 {[%clk 0:00:18]}  Nxd5 {[%clk 0:00:15]} 25. exd5 {[%clk 0:00:14]}  Bxh6 {[%clk 0:00:14]} 26. Qxh6 {[%clk 0:00:13]}  Bxf5 {[%clk 0:00:14]} 27. Rxf5 {[%clk 0:00:10]}  gxf5 {[%clk 0:00:13]} 28. Ra6 {[%clk 0:00:10]}  f6 {[%clk 0:00:06]} 29. Qg6+ {[%clk 0:00:09]}  Kh8 {[%clk 0:00:07]} 30. Ra7 {[%clk 0:00:08]}  Rb7 {[%clk 0:00:01]} 31. Rxb7 {[%clk 0:00:08]}  Qxd5 {[%clk 0:00:02]} 32. Qh7# {[%clk 0:00:08]} 1-0


[Site "https://www.chess.com"]